Cogmind - Beta 17.1 @@@ ROGUE MODE // 2026.09.23 @ 14:26:42 Player: Caluan Result: Destroyed by Piercing Trap Performance ------------- Evolutions (0) 0 Regions Visited (3) 600 Robots Destroyed (26) 130 Value Destroyed (522) 522 Prototype IDs (2) 40 Alien Tech Used (0) 0 Bonus (0) 0 TOTAL SCORE: 1292 Bonus ------- None Cogmind --------- Core Integrity 0/250 Matter 260/300 Energy 199/200 System Corruption 0% Temperature Cool (0) Movement Rolling (175) Ox5 Location -10/Subcaves Parts ------- > --- POWER (1) -------- Subdweller Power Source > --- PROPULSION (2) --- Light Treads Compact Wheel > --- UTILITY (2) ------ Disposable Heat Sink Huge Storage Unit > --- WEAPON (2) ------- Spread Laser Spread Laser > --- INVENTORY (25) --- Light Ion Engine Subdweller Power Source Subdweller Power Source Light Treads Compact Wheel Improved Heat Sink High-capacity Matter Pod (200) Improved Terrain Scanner Seismic Detector Scrap Shield Hacking Suite Tractor Beam Riot Gun Riot Gun Grenade Launcher Rocket Launcher Datajack Ripper Peak State ------------ > --- POWER ------------ Subdweller Power Source > --- PROPULSION ------- Light Treads Compact Wheel > --- UTILITY ---------- Disposable Heat Sink Huge Storage Unit > --- WEAPON ----------- Spread Laser Ripper > --- INVENTORY -------- Light Ion Engine Subdweller Power Source Subdweller Power Source Light Treads Compact Wheel Improved Heat Sink High-capacity Matter Pod Improved Terrain Scanner Seismic Detector Scrap Shield Hacking Suite Tractor Beam Riot Gun Riot Gun Spread Laser Grenade Launcher Rocket Launcher Datajack [Rating: 16] Favorites ----------- Power Ion Engine Engine Ion Engine Propulsion Light Treads Treads Light Treads Wheel Compact Wheel Utility Huge Storage Unit Device Cooling System Storage Huge Storage Unit Weapon Spread Laser Energy Gun Spread Laser Ballistic Gun Light Assault Rifle Launcher Rocket Launcher Slashing Weapon Ripper Build | -11 -10 -10 -10 ------- Run | Yrd Mat Min Sub Slots Evolved . | . . . . Power . | . . . . Propulsion . | . . . . Utility . | . . . . Weapon . | . . . . Parts Attached 23 | 6 7 . 10 Power 5 | 1 1 . 3 Engine 5 | 1 1 . 3 Core . | . . . . Reactor . | . . . . Propulsion 4 | 2 . . 2 Treads 3 | 2 . . 1 Leg . | . . . . Wheel 1 | . . . 1 Hover . | . . . . Flight . | . . . . Utility 4 | 1 2 . 1 Device 2 | . 1 . 1 Storage 2 | 1 1 . . Processor . | . . . . Hackware . | . . . . Protection . | . . . . Artifact . | . . . . Weapon 10 | 2 4 . 4 Energy Gun 7 | 1 4 . 2 Energy Cannon . | . . . . Ballistic Gun 1 | 1 . . . Ballistic Cannon . | . . . . Launcher 1 | . . . 1 Special Weapon . | . . . . Impact Weapon . | . . . . Slashing Weapon 1 | . . . 1 Piercing Weapon . | . . . . Special Melee Weapon . | . . . . Unidentified Prototypes . | . . . . Parts Lost 5 | . . . 5 Power 1 | . . . 1 Propulsion 1 | . . . 1 Utility 1 | . . . 1 Weapon 2 | . . . 2 Highest Loss Streak 3 | . . . 3 To Critical Strikes . | . . . . Average Backups 12 | 3 11 14 17 Power 1 | . 1 1 1 Propulsion 2 | 1 2 3 2 Utility 4 | . 3 5 6 Weapon 4 | . 3 4 5 Tool/Special . | . . . . Unused Backups 17 | . 3 1 13 Power 1 | . . . 1 Propulsion 1 | . . . 1 Utility 7 | . . . 7 Weapon 7 | . 3 1 3 Tool/Special 1 | . . . 1 Average Slot Usage (%) 99 | . 99 100 98 Engine 13 | . 14 14 13 Treads 25 | . 27 28 16 Wheel 2 | . . . 11 Device 13 | . 13 14 13 Storage 14 | . 14 14 14 Energy Gun 27 | . 27 28 26 Peak Build Rating 16 | 6 12 12 16 Average Rating 11 | 4 11 11 13 On Entrance 7 | . 6 12 12 Avg Prop Armor Cover (%) 15 | . . . 15 Naked Turns . | . . . . Heaviest Build 93 | 10 93 93 93 Greatest Support 40 | 40 40 40 40 Greatest Overweight (x) 5 | . 4 2 5 Average Overweight (x) 2 | . 1 2 4 Largest Inventory Capacity 25 | 8 25 25 25 Average Capacity 23 | 7 22 25 25 Most Carried 20 | 6 15 15 20 Average Carried 13 | 3 11 14 18 Final Capacity 25 | 8 25 25 25 Final Carried 19 | 6 14 15 19 Class Distribution -------------------- 100% | Mutant Dominant Class ---------------- Mutant | -10/Materials Mutant | -10/Mines Mutant | -10/Subcaves Resources | -11 -10 -10 -10 ----------- Run | Yrd Mat Min Sub Matter Collected 646 | 228 184 107 127 Remotely . | . . . . Salvage Created 585 | 23 353 68 141 Parts 51 | 4 27 14 6 Haulers Intercepted 2 | . 2 . . Recyclers Shooed . | . . . . Parts Field Recycled . | . . . . Retrieved Matter . | . . . . Parts Self-Destructed 9 | . . . 9 Prevented . | . . . . Parts Restored . | . . . . Kills | -11 -10 -10 -10 ------- Run | Yrd Mat Min Sub Combat Hostiles Destroyed 19 | . 8 6 5 Guns 18 | . 8 6 4 AOE 1 | . . . 1 Classes Destroyed 7 | 1 5 . 1 Worker 2 | . 2 . . Tunneler 2 | 1 . 1 . Hauler 2 | . 2 . . Operator 1 | . 1 . . Swarmer 9 | . 3 6 . Grunt 5 | . 5 . . Subdweller 5 | . . . 5 Best Kill Streak 5 | 1 5 3 2 Combat Bots Only 5 | . 5 3 2 Max Kills in Single Turn 2 | 1 2 1 1 Gunslinging 1 | . 1 . . Exploded 1 | . . . 1 Melee . | . . . . Uniques/NPCs Destroyed . | . . . . Combat | -11 -10 -10 -10 -------- Run | Yrd Mat Min Sub Hostile Shots Fired 66 | . 25 18 23 Missed 23 | . 10 8 5 Hits 43 | . 15 10 18 Projectile 43 | . 15 10 18 AOE 3 | . . . 3 Critical Strikes 1 | . . 1 . Damage Taken 869 | . 161 83 625 Core 256 | . 22 16 218 Absorbed by Shields . | . . . . Core Remaining (%) 100 | 100 . . . Volleys Fired 51 | 1 30 8 12 Largest 2 | 2 2 2 2 Hottest 130 | 60 130 130 130 Shots Fired 100 | 2 60 16 22 Gun 98 | 2 60 16 20 Cannon . | . . . . Launcher 2 | . . . 2 Special . | . . . . Kinetic 1 | 1 . . . Thermal 97 | 1 60 16 20 Explosive 2 | . . . 2 Electromagnetic . | . . . . Robot Hit Streak 17 | 1 8 6 17 Robot Miss Streak 6 | . 4 6 3 Penetration Max . | . . . . Secondary Targets 3 | . 2 . 1 Max Gunslinging Chain 1 | . 1 . 1 Shots Hit Robots 74 | 1 40 13 20 Core Hits 67 | 2 25 14 26 Critical Kills . | . . . . Critical Parts Destroyed . | . . . . Critical Strikes 6 | . 6 . . Burn 6 | . 6 . . Melee Attacks 1 | . . . 1 Impact . | . . . . Slashing 1 | . . . 1 Piercing . | . . . . Sneak Attacks . | . . . . Combat Hostiles . | . . . . Follow-up Attacks . | . . . . Damage Inflicted 1192 | 12 649 118 413 Guns 992 | 11 584 100 297 Cannons . | . . . . Explosions 116 | . . . 116 Melee . | . . . . Ramming 84 | 1 65 18 . Kinetic . | . . . . Thermal 992 | 11 584 100 297 Explosive 116 | . . . 116 Electromagnetic . | . . . . Impact . | . . . . Slashing . | . . . . Piercing . | . . . . Highest Corruption . | . . . . Average Corruption . | . . . . Corruption Purged . | . . . . Corruption Blocked . | . . . . Overload Shots . | . . . . Overflow Damage . | . . . . Projectiles . | . . . . Explosions . | . . . . Melee . | . . . . Knockbacks . | . . . . Impact . | . . . . Kinetic . | . . . . Secondary . | . . . . Self-Inflicted Damage . | . . . . Shots . | . . . . Rammed 14 | 1 11 2 . Targets Rammed 16 | 1 12 3 . Kicked . | . . . . Crushed 2 | . 1 1 . Highest Temperature 36 | 20 12 12 36 Average Temperature 6 | 10 3 5 15 Received Heat Transfer 114 | . 69 . 45 Siege Activations . | . . . . Martial Activations . | . . . . Shielding Activations . | . . . . Robots Disrupted . | . . . . Combat Hostiles . | . . . . Robots Corrupted . | . . . . Combat Hostiles . | . . . . Parts Fried . | . . . . Impact Corruptions . | . . . . Robots Melted . | . . . . Combat Hostiles . | . . . . Parts Melted 2 | . 2 . . Heat Transferred 2308 | 25 1773 130 380 Parts Sabotaged . | . . . . Parts Stolen . | . . . . Parts Stripped . | . . . . Power Chain Reactions . | . . . . Alert | -11 -10 -10 -10 ------- Run | Yrd Mat Min Sub Maximum Alert Level . | . . . . Low Security (%) 100 | 100 100 100 . Level 1 . | . . . . Level 2 . | . . . . Level 3 . | . . . . Level 4 . | . . . . Level 5 . | . . . . High Security . | . . . . Max Security . | . . . . Peak Influence 107 | 5 107 70 . Initial . | . . . . Average 11 | . 13 10 . Influence Increases 511 | 5 346 160 . Destroy 0b10 Robot/C 280 | . 160 120 . Destroy 0b10 Robot/NC 35 | 5 25 5 . Destroy Leader 64 | . 44 20 . Successful Hack 10 | . 10 . . Destroy Structure 2 | . 2 . . Lose Combat Pursuer 120 | . 105 15 . Influence Decreases 511 | 5 346 160 . Time Decay 511 | 5 346 160 . Squads Dispatched 1 | . 1 . . Investigation . | . . . . Extermination . | . . . . Reinforcement 1 | . 1 . . Assault . | . . . . Garrison . | . . . . Intercept . | . . . . Searches Triggered . | . . . . Construction Impeded . | . . . . Haulers Reinforced . | . . . . Active Scanning Responses . | . . . . Cargo Convoy Interrupts . | . . . . Stealth | -11 -10 -10 -10 --------- Run | Yrd Mat Min Sub Distress Signals . | . . . . Communications Jammed . | . . . . Distress Signals . | . . . . Times Spotted 47 | . 36 6 5 Peak Tracking Total 4 | . 4 3 2 Tactical Retreats 8 | . 7 1 . Traps | -11 -10 -10 -10 ------- Run | Yrd Mat Min Sub Traps Triggered 5 | . 3 . 2 Indirectly . | . . . . Trap Hack Attempts . | . . . . Triggered . | . . . . Disarmed . | . . . . Reprogrammed . | . . . . Reused . | . . . . Traps Extracted . | . . . . Installed . | . . . . Triggered . | . . . . Machines | -11 -10 -10 -10 ---------- Run | Yrd Mat Min Sub Machines Disabled . | . . . . Max in Single Turn . | . . . . Machines Repaired . | . . . . Machines Dismantled . | . . . . Machines Sabotaged . | . . . . Overloaded Fab Kills . | . . . . Hacking | -11 -10 -10 -10 --------- Run | Yrd Mat Min Sub Machines Accessed 6 | . 6 . . Terminals 6 | . 6 . . Fabricators . | . . . . Repair Stations . | . . . . Recycling Units . | . . . . Scanalyzers . | . . . . Garrison Access . | . . . . Total Hacks 16 | . 16 . . Successful 7 | . 7 . . Failed 8 | . 8 . . Catastrophic 1 | . 1 . . Database Lockouts 1 | . 1 . . Manual 14 | . 14 . . Terminals 16 | . 16 . . Fabricators . | . . . . Repair Stations . | . . . . Recycling Units . | . . . . Scanalyzers . | . . . . Garrison Access . | . . . . Terminal Hacks 2 | . 2 . . Robot Analysis 1 | . 1 . . Prototype ID Bank 1 | . 1 . . Fabricator Hacks . | . . . . Repair Station Hacks . | . . . . Recycling Unit Hacks . | . . . . Scanalyzer . | . . . . Garrison Access Hacks . | . . . . Unauthorized Hacks 4 | . 4 . . Terminals 4 | . 4 . . Botnet 4 | . 4 . . Fabricators . | . . . . Repair Stations . | . . . . Recycling Units . | . . . . Scanalyzers . | . . . . Garrison Access . | . . . . Data Cores Recovered 1 | . 1 . . Used . | . . . . Hacking Detections 5 | . 5 . . Full Trace Events . | . . . . Feedback Events . | . . . . Feedback Blocked . | . . . . Robot Schematics Acquired . | . . . . Robots Built . | . . . . Authchips . | . . . . Time . | . . . . Total Robot Build Rating . | . . . . Part Schematics Acquired . | . . . . Parts Built . | . . . . Authchips . | . . . . Time . | . . . . Total Part Build Rating . | . . . . Part Studies Acquired . | . . . . Parts Repaired . | . . . . Time . | . . . . Parts Recycled . | . . . . Recycled Matter . | . . . . Retrieved Matter . | . . . . Retrieved Components . | . . . . Parts Scanalyzed . | . . . . Part Schematics Acquired . | . . . . Parts Damaged . | . . . . Bothacking | -11 -10 -10 -10 ------------ Run | Yrd Mat Min Sub Used RIF Installer . | . . . . Robots Hacked . | . . . . Non-combat . | . . . . Combat . | . . . . Robot Hacks Applied . | . . . . Relay Couplers Released . | . . . . Fabnet Peak Effective % . | . . . . Robots Rewired . | . . . . Allies Hacked . | . . . . Hacks Repelled . | . . . . Allies | -11 -10 -10 -10 -------- Run | Yrd Mat Min Sub Total Allies 3 | . . 3 . Largest Group 3 | . . 3 3 Highest-Rated Group 40 | . . 40 40 Highest-Rated Ally 16 | . . 16 16 Total Orders . | . . . . Ally Attacks 8 | . . . 8 Total Damage 119 | . . . 119 Kills . | . . . . Allies Corrupted . | . . . . Allies Melted . | . . . . Intel | -11 -10 -10 -10 ------- Run | Yrd Mat Min Sub Active Infowar (turns) . | . . . . Robot Analysis Total 1 | . 1 . . Derelict Logs Recovered 3 | . . 2 1 Drone Launches . | . . . . Drone Recoveries . | . . . . Exploration | -11 -10 -10 -10 ------------- Run | Yrd Mat Min Sub Turns Passed 4364 | 143 2505 998 718 Spaces Moved 1531 | 86 793 299 353 Core 16 | 16 . . . Treads 1189 | 70 793 299 27 Legs . | . . . . Wheels 326 | . . . 326 Hover . | . . . . Flight . | . . . . Fastest Speed 50 | 50 160 320 175 Average Speed 265 | 139 293 320 186 Slowest Speed 480 | 160 480 320 320 Overloaded Moves . | . . . . Propulsion Burnouts . | . . . . Robots Hopped . | . . . . Potential Cave-ins . | . . . . Cave-ins Triggered . | . . . . Exploration Rate (%) 46 | 4 94 63 24 Regions Visited 3 Branch Regions 2 Pre-discovered Areas 2 | . . 1 1 Known Exits Taken . | . . . . Unknown Exits Taken 3 | 1 1 1 . Scrap Searched 1 | . . 1 . Spaces Dug . | . . . . Terrain Destroyed 4 | . . . 4 Melee . | . . . . Projectile . | . . . . AOE 4 | . . . 4 Terrain Rammed . | . . . . Walls Destroyed . | . . . . Machines Disabled . | . . . . Actions | -11 -10 -10 -10 --------- Run | Yrd Mat Min Sub Total 1709 | 107 894 320 388 Wait 38 | 2 25 8 3 Move 1528 | 85 792 298 353 Hop . | . . . . Pick Up 35 | 12 14 2 7 Fast Attach 7 | . 6 . 1 Attach 12 | 6 2 . 4 Detach . | . . . . Swap 11 | . 4 . 7 Drop 10 | . 9 1 . Fire 51 | 1 30 8 12 Melee 1 | . . . 1 Ram . | . . . . Kick . | . . . . Crush 16 | 1 12 3 . Escape Stasis . | . . . . Rewire . | . . . . Trap . | . . . . Miscellaneous . | . . . . Route ------- -11/Scrapyard -10/Materials (discovered 5 exits: [*Mat x3] / [*Min x2]) -10/Mines (discovered 2 exits: [*Mat] / [*Sub]) -10/Subcaves History --------- Turn | Location | Event 6 | -11/Scrapyard | Discovered new exit (range 15) 144 | -11/Scrapyard | Entered Materials 318 | -10/Materials | Build established: Mutant 509 | -10/Materials | Discovered new exit (range 16) 856 | -10/Materials | Discovered new exit (range 13) 1319 | -10/Materials | Discovered new exit (range 7) 1432 | -10/Materials | Central database locked down 1512 | -10/Materials | Discovered new exit (range 14) 2047 | -10/Materials | Discovered new exit (range 7) 2649 | -10/Materials | Entered Mines 2748 | -10/Mines | Received a Rocket Launcher from a helpful Derelict 2826 | -10/Mines | A weapon hastily lodged in a ceiling crevice suddenly fell to the ground 2843 | -10/Mines | Discovered new exit (range 6) 2855 | -10/Mines | Learned location of Zion (-7) 3052 | -10/Mines | Assisted by bots powering up and referring to "LRC-V3" 3126 | -10/Mines | Learned Materials interactive machine intel 3622 | -10/Mines | Discovered new exit (range 6) 3647 | -10/Mines | Entered Subcaves 3647 | -10/Subcaves | Accompanied by 3 allies 3648 | -10/Subcaves | Approached by a straggling Scientist 3651 | -10/Subcaves | Ambushed by Subdwellers from Twisted Machinery 3683 | -10/Subcaves | Shifting Twisted Machinery released Riot Gun 3684 | -10/Subcaves | Shifting Twisted Machinery released Riot Gun 3748 | -10/Subcaves | Core integrity fell below 50% 3792 | -10/Subcaves | Lost 3 parts (1p1n1u) 3938 | -10/Subcaves | Core integrity fell below 20% 4270 | -10/Subcaves | Shifting Twisted Machinery released Flamer 4271 | -10/Subcaves | Shifting Twisted Machinery released Sub. Power Source 4365 | -10/Subcaves | Destroyed by Piercing Trap Last Messages --------------- 03971_ TW-5SQ(c) destroyed. 03973_ Subatomizers dissect the Machine Analyzer. 03979_ Acquired 1 matter. 03987_ Subatomizers dissect the Machine Analyzer. 04040_ Spread Laser destroyed. 04043_ 4B-GNA(R) destroyed. 04051_ Acquired 16 matter. 04067_ Acquired 4 matter. 04175_ Acquired derelict log, extracted data. World map updated: -8/Materials. 04234_ Sub. Power Source shoots sparks and powers down. Flamer falls loose from the Twisted Machinery. Sub. Power Source falls loose from the Twisted Machinery. 04291_ Acquired Sub. Power Source. 04365_ Triggered Piercing Trap. 04365_ Spikes shoot up from the floor. Map ----- +----------------------------------------------------+ | ?????????????????????????????????????????????????? | | ?????????????????????????????????????????????????? | | ?????????????????????????????????????????????????? | | ?????????????????????????????????????????????????? | | ?????????????????????????????????????????????????? | | ?????????????????????????????????????????????????? | | ???????????????######????????????????????????????? | | ???????????????# ##??????????????????????????? | | ????????????????? #?####????????????????????? | | ?????????????????? ## #????????????????????? | | ??????????????????? ?????????????????????? | | ????????????????????? ?????????????????????? | | ?????????????????????? ???????????? ??????? | | ??????????????????????? ##???????????? "#?????? | | ???????????????????????## #????????????? ????? | | ???????????????????????# #?????????????## ???? | | ???????????????????????## #?????????????#" #??? | | ????????????????????????# #????????????#?" "##? | | ???????????????????????## #?????????### ?? # | | ???????????????????????# #????##???# ???? * | | ???????????????????????# ##### #??## ##?????# | | ???????????###?????##### !% #???# ##?####] | | ??????????## ####### ##??? ### | | ?????????## # ###?# ## | | ###??????#; #### # #?# ## | | ##?????#; ^@ ##?# #### #?# | | ##????#" "## ## #?# ### | | ######" "## ^## #?# # # | | ## ### #?######## | | # " #?## #????????# | | # ## ###""^ ##?# #????????# ### | | # ######?## ###?## ##????????###?# | | ## #???????## ##???# #????????????## | | ?# #??##########???# #????????####### | | ?# ##"#""# # ##### ##????#### ## # | | ?" """"" # " ##??## | | #" """"""" " |"" #### | | #" """"##" # """ # # ## | | "" """"### ## "##### ###### | | ? ##"""" """ ##???## ### #???## ## | | ? ## " """" " #???#" ##?####### #?##### | | ?## " " ###### ##?"" """#????????#### #??## | | ??## " ??????###?""" ##???????????? ##??# | | ???###"???????????" #????????????? ##?# | | ?????#????????????## ##????????????? ###?# | | ???????????????????####???????????????##???# ## | | ???????????????????????????????????????????#####?? | | ?????????????????????????????????????????????????? | | ?????????????????????????????????????????????????? | | ?????????????????????????????????????????????????? | +----------------------------------------------------+ Best States ------------- Heat Dissipation 47 Coolant Potential 50 Energy Generation 15 Energy Capacity 250 Matter Stores 300 Matter Capacity 300 Sight Range 16 Terrain Scan Density 10 Evasion (%) 50 Recoil Reduction 2 Item Schematics ----------------- None Robot Schematics ------------------ None Fabricated ------------ Nothing Repaired ---------- Nothing Studied --------- None Alien Tech Used ----------------- None Achievements -------------- None Challenges ------------ None Game ------ Seed BiometalPrecisionCompressor Manual? 0 Play Time 00:20:04 Cumulative 325.8 hours Start 2026.09.23 @ 13:14:30 End 2026.09.23 @ 14:26:42 Sessions 1 Manual Loads 0 Difficulty Rogue Special Mode None Game No. 367 Rogue 367 Adventurer 0 Explorer 0 Win Type - Total 4 Types 3/0/1/0/0/0/0/0/0/0 Lore% 56 Gallery% 60 Achievement% 48 Wizard Run 0 Options --------- Layout 1 ASCII 0 Keyboard 0 Movement Numpad Keybinds 0 Fullscreen 2 Font 24/Smallcaps Map View 50x35 Zoom Use 0% Tactical HUD 1 Map Filters NONE Filters NONE Steam 1 RUN: bd7140e8-68c2-4ba3-8f18-51ace44388de